[Event "Championnat d'Europe de Blitz"]
[Date "2024.12.09"]
[White "Guliyev, Namig"]
[Black "Vuckovic, Robert"]
[WhiteElo "2484"]
[BlackElo "1963"]
[Round "3.54"]
[Result "1-0"]
[TimeControl "180+2"]

1. e4 {[%emt 00:00:02] [%clk 00:03:02]} c5 {[%emt 00:00:02] [%clk 00:03:03]} 2.
Nf3 {[%emt 00:00:02] [%clk 00:03:02]} e6 {[%emt 00:00:01] [%clk 00:03:04]} 3. d4
{[%emt 00:00:01] [%clk 00:03:03]} cxd4 {[%emt 00:00:02] [%clk 00:03:04]} 4. Nxd4
{[%emt 00:00:02] [%clk 00:03:03]} Nf6 {[%emt 00:00:01] [%clk 00:03:05]} 5. Nc3
{[%emt 00:00:02] [%clk 00:03:04]} Nc6 {[%emt 00:00:01] [%clk 00:03:06]} 6. a3
{[%emt 00:00:02] [%clk 00:03:03]} d5 {[%emt 00:00:08] [%clk 00:03:00]} 7. Bb5
{[%emt 00:00:02] [%clk 00:03:03]} Bd7 {[%emt 00:00:07] [%clk 00:02:55]} 8. exd5
{[%emt 00:00:03] [%clk 00:03:03]} Nxd5 {[%emt 00:00:18] [%clk 00:02:38]} 9. Nxd5
{[%emt 00:00:04] [%clk 00:03:01]} exd5 {[%emt 00:00:02] [%clk 00:02:38]} 10. O-O
{[%emt 00:00:02] [%clk 00:03:01]} Be7 {[%emt 00:00:07] [%clk 00:02:33]} 11. Be3
{[%emt 00:00:21] [%clk 00:02:41]} O-O {[%emt 00:00:15] [%clk 00:02:21]} 12. Be2
{[%emt 00:00:05] [%clk 00:02:38]} Bf6 {[%emt 00:00:03] [%clk 00:02:19]} 13. c3
{[%emt 00:00:02] [%clk 00:02:39]} Re8 {[%emt 00:00:05] [%clk 00:02:16]} 14. Re1
{[%emt 00:00:04] [%clk 00:02:37]} Ne5 {[%emt 00:00:12] [%clk 00:02:06]} 15. Qb3
{[%emt 00:00:05] [%clk 00:02:34]} Bc6 {[%emt 00:00:10] [%clk 00:01:59]} 16. Rad1
{[%emt 00:00:04] [%clk 00:02:31]} Qc8 {[%emt 00:00:05] [%clk 00:01:56]} 17. Nxc6
{[%emt 00:00:12] [%clk 00:02:22]} bxc6 {[%emt 00:00:01] [%clk 00:01:56]} 18. Qc2
{[%emt 00:00:03] [%clk 00:02:21]} Ng4 {[%emt 00:00:15] [%clk 00:01:43]} 19. Bc5
{[%emt 00:00:07] [%clk 00:02:16]} Be5 {[%emt 00:00:20] [%clk 00:01:25]} 20. Bxg4
{[%emt 00:00:30] [%clk 00:01:48]} Qxg4 {[%emt 00:00:02] [%clk 00:01:25]} 21. Re3
{[%emt 00:00:05] [%clk 00:01:45]} Bf4 {[%emt 00:00:07] [%clk 00:01:20]} 22. h3
{[%emt 00:00:08] [%clk 00:01:39]} Qg5 {[%emt 00:00:04] [%clk 00:01:18]} 23.
Rxe8+ {[%emt 00:00:04] [%clk 00:01:37]} Rxe8 {[%emt 00:00:01] [%clk 00:01:19]}
24. Bxa7 {[%emt 00:00:04] [%clk 00:01:36]} h6 {[%emt 00:00:22] [%clk 00:00:58]}
25. Bc5 {[%emt 00:00:05] [%clk 00:01:33]} Re6 {[%emt 00:00:04] [%clk 00:00:57]}
26. Qd3 {[%emt 00:00:08] [%clk 00:01:26]} Qh5 {[%emt 00:00:13] [%clk 00:00:47]}
27. Qf3 {[%emt 00:00:06] [%clk 00:01:19]} Qxf3 {[%emt 00:00:04] [%clk 00:00:46]}
28. gxf3 {[%emt 00:00:02] [%clk 00:01:20]} Re2 {[%clk 00:00:47]} 29. Rb1 {[%emt
00:00:13] [%clk 00:01:09]} Rc2 {[%emt 00:00:09] [%clk 00:00:40]} 30. a4 {[%emt
00:00:02] [%clk 00:01:10]} Bc7 {[%emt 00:00:02] [%clk 00:00:39]} 31. Bd4 {[%emt
00:00:07] [%clk 00:01:05]} Kh7 {[%emt 00:00:12] [%clk 00:00:30]} 32. b4 {[%emt
00:00:03] [%clk 00:01:04]} Ra2 {[%emt 00:00:02] [%clk 00:00:29]} 33. a5 {[%clk
00:01:05]} g5 {[%emt 00:00:04] [%clk 00:00:28]} 34. Re1 {[%emt 00:00:02] [%clk
00:01:04]} Bd6 {[%emt 00:00:09] [%clk 00:00:21]} 35. Re8 {[%emt 00:00:02] [%clk
00:01:04]} Rd2 {[%emt 00:00:03] [%clk 00:00:20]} 36. Rc8 {[%emt 00:00:03] [%clk
00:01:03]} Bxb4 {[%emt 00:00:02] [%clk 00:00:20]} 37. cxb4 {[%emt 00:00:11]
[%clk 00:00:54]} Rxd4 {[%emt 00:00:02] [%clk 00:00:19]} 38. a6 {[%emt 00:00:02]
[%clk 00:00:55]} Rd1+ {[%emt 00:00:02] [%clk 00:00:19]} 39. Kg2 {[%emt 00:00:01]
[%clk 00:00:56]} Ra1 {[%emt 00:00:08] [%clk 00:00:14]} 40. Rxc6 {[%emt 00:00:01]
[%clk 00:00:56]} d4 {[%clk 00:00:15]} 41. b5 {[%emt 00:00:01] [%clk 00:00:57]}
d3 {[%emt 00:00:04] [%clk 00:00:13]} 42. Rd6 {[%emt 00:00:01] [%clk 00:00:58]}
Ra3 {[%emt 00:00:05] [%clk 00:00:11]} 43. Rd7 {[%emt 00:00:03] [%clk 00:00:56]}
Kg6 {[%emt 00:00:05] [%clk 00:00:08]} 44. a7 {[%emt 00:00:02] [%clk 00:00:57]}
Kf6 {[%emt 00:00:01] [%clk 00:00:08]} 45. b6 {[%emt 00:00:02] [%clk 00:00:58]}
Ke6 {[%emt 00:00:01] [%clk 00:00:09]} 46. Rxd3 {[%emt 00:00:01] [%clk 00:00:58]}
1-0

[Site "Europe Echecs"]

[Event "Championnat d'Europe de Blitz"]
[Date "2024.12.09"]
[White "Koelle, Tobias"]
[Black "Sarana, Alexey"]
[WhiteElo "2437"]
[BlackElo "2674"]
[Round "4.1"]
[Result "1/2-1/2"]
[TimeControl "180+2"]

1. d4 {[%clk 00:03:03]} Nf6 {[%emt 00:00:01] [%clk 00:03:04]} 2. c4 {[%clk
00:03:05]} e6 {[%emt 00:00:03] [%clk 00:03:05]} 3. Nf3 {[%clk 00:03:06]} d5
{[%clk 00:03:06]} 4. Nc3 {[%clk 00:03:06]} Nbd7 {[%emt 00:00:02] [%clk
00:03:07]} 5. Bf4 {[%clk 00:03:06]} Bb4 {[%emt 00:00:02] [%clk 00:03:08]} 6.
cxd5 {[%emt 00:00:03] [%clk 00:03:06]} exd5 {[%clk 00:03:09]} 7. e3 {[%emt
00:00:01] [%clk 00:03:07]} O-O {[%emt 00:00:04] [%clk 00:03:07]} 8. Bd3 {[%emt
00:00:01] [%clk 00:03:08]} c5 {[%clk 00:03:08]} 9. dxc5 {[%emt 00:00:01] [%clk
00:03:09]} Nxc5 {[%emt 00:00:02] [%clk 00:03:08]} 10. O-O {[%emt 00:00:02] [%clk
00:03:08]} Bg4 {[%emt 00:00:07] [%clk 00:03:03]} 11. Be2 {[%emt 00:00:01] [%clk
00:03:08]} Bxc3 {[%emt 00:00:08] [%clk 00:02:58]} 12. bxc3 {[%emt 00:00:01]
[%clk 00:03:09]} Nfe4 {[%emt 00:00:05] [%clk 00:02:55]} 13. Be5 {[%emt 00:00:02]
[%clk 00:03:10]} Rc8 {[%emt 00:00:03] [%clk 00:02:54]} 14. h3 {[%emt 00:00:14]
[%clk 00:02:58]} Bxf3 {[%emt 00:00:17] [%clk 00:02:38]} 15. Bxf3 {[%emt
00:00:01] [%clk 00:02:59]} Re8 {[%emt 00:00:04] [%clk 00:02:37]} 16. Bd4 {[%emt
00:00:03] [%clk 00:02:57]} b6 {[%emt 00:00:02] [%clk 00:02:38]} 17. a4 {[%clk
00:02:58]} Ne6 {[%emt 00:00:07] [%clk 00:02:33]} 18. Bxe4 {[%emt 00:00:13] [%clk
00:02:46]} dxe4 {[%emt 00:00:01] [%clk 00:02:34]} 19. a5 {[%emt 00:00:01] [%clk
00:02:48]} Rc6 {[%emt 00:00:06] [%clk 00:02:30]} 20. axb6 {[%emt 00:00:02] [%clk
00:02:48]} axb6 {[%clk 00:02:31]} 21. Qb3 {[%emt 00:00:01] [%clk 00:02:49]} Ng5
{[%emt 00:00:37] [%clk 00:01:56]} 22. Ra7 {[%emt 00:00:23] [%clk 00:02:27]} Rg6
{[%emt 00:00:14] [%clk 00:01:44]} 23. Kh1 {[%emt 00:00:03] [%clk 00:02:26]} Qc8
{[%emt 00:00:08] [%clk 00:01:38]} 24. Rfa1 {[%emt 00:00:29] [%clk 00:02:00]} h6
{[%emt 00:00:14] [%clk 00:01:26]} 25. Qd5 {[%emt 00:00:09] [%clk 00:01:53]} Qc6
{[%emt 00:00:16] [%clk 00:01:12]} 26. Qxc6 {[%clk 00:01:54]} Rxc6 {[%emt
00:00:01] [%clk 00:01:13]} 27. Rb7 {[%emt 00:00:01] [%clk 00:01:55]} Ne6 {[%emt
00:00:01] [%clk 00:01:13]} 28. Raa7 {[%emt 00:00:06] [%clk 00:01:50]} Nxd4
{[%emt 00:00:35] [%clk 00:00:41]} 29. cxd4 {[%clk 00:01:51]} Rf6 {[%emt
00:00:01] [%clk 00:00:43]} 30. Kg1 {[%emt 00:00:04]} Rc8 {[%clk 00:00:44]} 31.
Rc7 {[%emt 00:00:01] [%clk 00:01:50]} Rb8 {[%emt 00:00:01] [%clk 00:00:45]} 32.
Rab7 {[%emt 00:00:24] [%clk 00:01:28]} Ra8 {[%emt 00:00:11]} 33. Rc2 {[%clk
00:01:18]} Ra1+ {[%emt 00:00:07] [%clk 00:00:43]} 34. Kh2 {[%clk 00:01:19]} Rf1
{[%emt 00:00:02] [%clk 00:00:42]} 35. Kg3 {[%emt 00:00:07] [%clk 00:01:14]} Rg6+
{[%emt 00:00:13] [%clk 00:00:31]} 36. Kh2 {[%emt 00:00:14] [%clk 00:01:03]} Rf6
{[%clk 00:00:32]} 37. Kg3 {[%emt 00:00:01] [%clk 00:01:04]} Rg1 {[%emt 00:00:04]
[%clk 00:00:30]} 38. Kh2 {[%emt 00:00:07] [%clk 00:00:58]} Rf1 {[%emt 00:00:02]
[%clk 00:00:31]} 39. Kg3 {[%clk 00:01:00]} Rg1 {[%emt 00:00:11] [%clk 00:00:22]}
40. Kh2 {[%emt 00:00:01] [%clk 00:01:01]} 1/2-1/2

[Site "Europe Echecs"]

[Event "Championnat d'Europe de Blitz"]
[Date "2024.12.09"]
[White "Pichot, Alan"]
[Black "Fedoseev, Vladimir"]
[WhiteElo "2637"]
[BlackElo "2709"]
[Round "4.2"]
[Result "1-0"]
[TimeControl "180+2"]

1. e4 {[%emt 00:00:01] [%clk 00:03:02]} e5 {[%emt 00:00:07] [%clk 00:02:57]} 2.
Nf3 {[%emt 00:00:01] [%clk 00:03:03]} Nf6 {[%emt 00:00:03] [%clk 00:02:57]} 3.
d4 {[%emt 00:00:03] [%clk 00:03:02]} Nxe4 {[%emt 00:00:02] [%clk 00:02:57]} 4.
dxe5 {[%emt 00:00:01] [%clk 00:03:03]} d5 {[%emt 00:00:01] [%clk 00:02:57]} 5.
Nbd2 {[%emt 00:00:02] [%clk 00:03:04]} Qd7 {[%clk 00:02:58]} 6. Bd3 {[%emt
00:00:01] [%clk 00:03:04]} Nc5 {[%emt 00:00:03] [%clk 00:02:57]} 7. Be2 {[%emt
00:00:02] [%clk 00:03:05]} Ne6 {[%emt 00:00:04] [%clk 00:02:55]} 8. O-O {[%emt
00:00:02] [%clk 00:03:05]} Be7 {[%emt 00:00:03] [%clk 00:02:54]} 9. Re1 {[%emt
00:00:04] [%clk 00:03:02]} O-O {[%emt 00:00:03] [%clk 00:02:53]} 10. Nf1 {[%emt
00:00:07] [%clk 00:02:58]} c5 {[%emt 00:00:07] [%clk 00:02:48]} 11. Bd3 {[%emt
00:00:03] [%clk 00:02:57]} Nc6 {[%emt 00:00:05] [%clk 00:02:45]} 12. c3 {[%emt
00:00:01] [%clk 00:02:57]} Rd8 {[%emt 00:00:17] [%clk 00:02:30]} 13. h4 {[%emt
00:00:03] [%clk 00:02:57]} c4 {[%emt 00:00:11] [%clk 00:02:21]} 14. Bf5 {[%emt
00:00:01] [%clk 00:02:58]} Qe8 {[%emt 00:00:03] [%clk 00:02:20]} 15. Ng3 {[%emt
00:00:21] [%clk 00:02:38]} d4 {[%emt 00:00:04] [%clk 00:02:19]} 16. Bxe6 {[%emt
00:00:23] [%clk 00:02:17]} dxc3 {[%emt 00:00:26] [%clk 00:01:55]} 17. Bxf7+
{[%emt 00:00:27] [%clk 00:01:51]} Qxf7 {[%emt 00:00:02] [%clk 00:01:56]} 18. Qe2
{[%emt 00:00:01] [%clk 00:01:52]} cxb2 {[%emt 00:00:14] [%clk 00:01:44]} 19.
Bxb2 {[%emt 00:00:02] [%clk 00:01:53]} Be6 {[%emt 00:00:08] [%clk 00:01:38]} 20.
Ne4 {[%emt 00:00:31] [%clk 00:01:23]} Qg6 {[%emt 00:00:05] [%clk 00:01:35]} 21.
Nfg5 {[%emt 00:00:21] [%clk 00:01:05]} Nd4 {[%emt 00:00:08] [%clk 00:01:29]} 22.
Bxd4 {[%emt 00:00:14] [%clk 00:00:52]} Bxg5 {[%emt 00:00:13] [%clk 00:01:18]}
23. Nxg5 {[%emt 00:00:08] [%clk 00:00:46]} Rxd4 {[%emt 00:00:01] [%clk
00:01:19]} 24. Rad1 {[%emt 00:00:20] [%clk 00:00:28]} Rxh4 {[%emt 00:00:07]
[%clk 00:01:14]} 25. Nxe6 {[%emt 00:00:01] [%clk 00:00:29]} Qh6 {[%clk
00:01:15]} 26. f4 {[%emt 00:00:05] [%clk 00:00:25]} Rh1+ {[%emt 00:00:08] [%clk
00:01:09]} 27. Kf2 {[%clk 00:00:27]} Rxe1 {[%emt 00:00:02] [%clk 00:01:09]} 28.
Qxc4 {[%emt 00:00:15] [%clk 00:00:13]} Re4 {[%emt 00:00:36] [%clk 00:00:35]} 29.
Qxe4 {[%emt 00:00:01] [%clk 00:00:15]} Qxe6 {[%emt 00:00:01] [%clk 00:00:36]}
30. Qxb7 {[%emt 00:00:01] [%clk 00:00:16]} Qxa2+ {[%emt 00:00:02] [%clk
00:00:37]} 31. Kg3 {[%emt 00:00:02] [%clk 00:00:16]} Qa3+ {[%emt 00:00:14] [%clk
00:00:25]} 32. Kh2 {[%emt 00:00:02] [%clk 00:00:15]} Re8 {[%emt 00:00:04] [%clk
00:00:23]} 33. Rd7 {[%emt 00:00:02] [%clk 00:00:15]} Qf8 {[%emt 00:00:01] [%clk
00:00:24]} 34. Qd5+ {[%emt 00:00:04] [%clk 00:00:14]} Kh8 {[%emt 00:00:01] [%clk
00:00:25]} 35. Rf7 {[%emt 00:00:01] [%clk 00:00:14]} Qb4 {[%emt 00:00:04] [%clk
00:00:22]} 36. e6 {[%emt 00:00:04] [%clk 00:00:14]} Qe1 {[%emt 00:00:03] [%clk
00:00:20]} 37. Qg5 {[%emt 00:00:01] [%clk 00:00:14]} Rg8 {[%emt 00:00:06] [%clk
00:00:17]} 38. e7 {[%emt 00:00:05] [%clk 00:00:11]} h6 {[%clk 00:00:19]} 39. Qg4
{[%emt 00:00:07] [%clk 00:00:06]} a5 {[%emt 00:00:02] [%clk 00:00:19]} 40. f5
{[%emt 00:00:03] [%clk 00:00:06]} Qe5+ {[%emt 00:00:02] [%clk 00:00:19]} 41. Kh3
{[%emt 00:00:01] [%clk 00:00:07]} a4 {[%emt 00:00:01] [%clk 00:00:19]} 42. f6
{[%emt 00:00:02] [%clk 00:00:07]} h5 {[%emt 00:00:11] [%clk 00:00:09]} 43. Qg6
{[%emt 00:00:02] [%clk 00:00:08]} Qe6+ {[%emt 00:00:01] [%clk 00:00:11]} 44. Kh4
{[%emt 00:00:04] [%clk 00:00:06]} Qe1+ {[%clk 00:00:11]} 45. Kh3 {[%emt
00:00:02] [%clk 00:00:06]} Qh1+ {[%emt 00:00:01] [%clk 00:00:12]} 46. Kg3 {[%emt
00:00:01] [%clk 00:00:07]} Qe1+ {[%emt 00:00:01] [%clk 00:00:13]} 47. Kf3 {[%clk
00:00:08]} Qf1+ {[%emt 00:00:04] [%clk 00:00:11]} 48. Ke3 {[%emt 00:00:02] [%clk
00:00:08]} Qe1+ {[%emt 00:00:01] [%clk 00:00:12]} 49. Kd4 {[%emt 00:00:02] [%clk
00:00:08]} Qd2+ {[%emt 00:00:02] [%clk 00:00:11]} 50. Qd3 {[%emt 00:00:05] [%clk
00:00:06]} Qb2+ {[%emt 00:00:05] [%clk 00:00:07]} 51. Kc5 {[%emt 00:00:04]} Rc8+
{[%clk 00:00:07]} 52. Kd6 {[%emt 00:00:02]} Qb6+ {[%clk 00:00:08]} 53. Ke5
{[%emt 00:00:01] [%clk 00:00:06]} Qc5+ {[%emt 00:00:06] [%clk 00:00:04]} 54. Kf4
{[%emt 00:00:02] [%clk 00:00:07]} Qb4+ {[%clk 00:00:06]} 55. Kf3 {[%emt
00:00:05] [%clk 00:00:04]} Qg4+ {[%emt 00:00:02] [%clk 00:00:05]} 56. Kf2 {[%emt
00:00:02] [%clk 00:00:05]} Qf4+ {[%emt 00:00:01] [%clk 00:00:06]} 57. Ke2 {[%emt
00:00:02] [%clk 00:00:04]} Qe5+ {[%emt 00:00:02] [%clk 00:00:07]} 58. Kf3 {[%emt
00:00:01] [%clk 00:00:05]} Kg8 {[%emt 00:00:04] [%clk 00:00:05]} 59. Rxg7+
{[%emt 00:00:02] [%clk 00:00:05]} 1-0

[Site "Europe Echecs"]

[Event "Championnat d'Europe de Blitz"]
[Date "2024.12.09"]
[White "Korobov, Anton"]
[Black "Livaic, Leon"]
[WhiteElo "2629"]
[BlackElo "2560"]
[Round "4.3"]
[Result "1-0"]
[TimeControl "180+2"]

1. e4 {[%emt 00:00:01] [%clk 00:03:03]} d6 {[%emt 00:00:04] [%clk 00:03:03]} 2.
d4 {[%emt 00:00:01] [%clk 00:03:01]} Nf6 {[%emt 00:00:01] [%clk 00:03:04]} 3.
Nc3 {[%emt 00:00:04] [%clk 00:02:59]} e5 {[%emt 00:00:01] [%clk 00:03:05]} 4.
Nf3 {[%emt 00:00:04] [%clk 00:02:57]} Nbd7 {[%emt 00:00:02] [%clk 00:03:05]} 5.
a4 {[%emt 00:00:06] [%clk 00:02:54]} Be7 {[%emt 00:00:01] [%clk 00:03:06]} 6.
dxe5 {[%emt 00:00:12] [%clk 00:02:44]} dxe5 {[%emt 00:00:04] [%clk 00:03:04]} 7.
h3 {[%emt 00:00:04] [%clk 00:02:41]} a5 {[%emt 00:00:06] [%clk 00:03:00]} 8. Be3
{[%emt 00:00:06] [%clk 00:02:37]} c6 {[%emt 00:00:05] [%clk 00:02:58]} 9. Bc4
{[%emt 00:00:05] [%clk 00:02:33]} O-O {[%emt 00:00:02] [%clk 00:02:57]} 10. O-O
{[%emt 00:00:02] [%clk 00:02:33]} Qc7 {[%emt 00:00:08] [%clk 00:02:52]} 11. Nh4
{[%emt 00:00:09] [%clk 00:02:25]} Bc5 {[%emt 00:00:50] [%clk 00:02:05]} 12. Nf5
{[%emt 00:00:20] [%clk 00:02:07]} Bxe3 {[%emt 00:00:24] [%clk 00:01:44]} 13.
fxe3 {[%emt 00:00:01] [%clk 00:02:07]} Nc5 {[%emt 00:00:31] [%clk 00:01:16]} 14.
Nh6+ {[%emt 00:00:22] [%clk 00:01:47]} Kh8 {[%clk 00:01:17]} 15. Rxf6 {[%emt
00:00:22] [%clk 00:01:25]} gxf6 {[%clk 00:01:18]} 16. Qh5 {[%emt 00:00:04] [%clk
00:01:26]} Be6 {[%emt 00:00:10] [%clk 00:01:10]} 17. Qh4 {[%emt 00:00:15] [%clk
00:01:13]} Qe7 {[%emt 00:00:06] [%clk 00:01:05]} 18. Be2 {[%emt 00:00:06] [%clk
00:01:09]} Rae8 {[%emt 00:00:21] [%clk 00:00:47]} 19. Rf1 {[%emt 00:00:01] [%clk
00:01:09]} f5 {[%emt 00:00:06] [%clk 00:00:43]} 20. Qxe7 {[%emt 00:00:02] [%clk
00:01:09]} Rxe7 {[%emt 00:00:02] [%clk 00:00:44]} 21. exf5 {[%emt 00:00:01]
[%clk 00:01:08]} Bd5 {[%emt 00:00:11] [%clk 00:00:36]} 22. f6 {[%clk 00:01:09]}
Re6 {[%emt 00:00:09] [%clk 00:00:29]} 23. g4 {[%emt 00:00:05] [%clk 00:01:06]}
e4 {[%emt 00:00:19] [%clk 00:00:12]} 24. g5 {[%emt 00:00:12] [%clk 00:00:56]}
Re5 {[%emt 00:00:01] [%clk 00:00:13]} 25. h4 {[%emt 00:00:01] [%clk 00:00:57]}
Be6 {[%emt 00:00:01] [%clk 00:00:14]} 26. Kh2 {[%emt 00:00:05] [%clk 00:00:54]}
Rd8 {[%emt 00:00:01] [%clk 00:00:15]} 27. Kg3 {[%emt 00:00:05] [%clk 00:00:52]}
Nd7 {[%emt 00:00:04] [%clk 00:00:13]} 28. Bg4 {[%emt 00:00:04] [%clk 00:00:49]}
Rf8 {[%emt 00:00:06] [%clk 00:00:09]} 29. Rd1 {[%emt 00:00:02] [%clk 00:00:49]}
Nb6 {[%emt 00:00:05] [%clk 00:00:07]} 30. Kf4 {[%emt 00:00:09] [%clk 00:00:42]}
Rc5 {[%emt 00:00:05] [%clk 00:00:03]} 31. Bxe6 {[%emt 00:00:09] [%clk 00:00:35]}
fxe6 {[%clk 00:00:05]} 32. Nxe4 {[%emt 00:00:02] [%clk 00:00:35]} Rxc2 {[%emt
00:00:03] [%clk 00:00:04]} 33. Nd6 {[%emt 00:00:01] [%clk 00:00:34]} Nd5+ {[%emt
00:00:03] [%clk 00:00:04]} 34. Ke5 {[%emt 00:00:01] [%clk 00:00:35]} Nxe3 {[%emt
00:00:03] [%clk 00:00:03]} 35. Ndf7+ {[%emt 00:00:01] [%clk 00:00:35]} Rxf7
{[%emt 00:00:02] [%clk 00:00:05]} 36. Rd8+ {[%emt 00:00:02] [%clk 00:00:35]} Rf8
{[%clk 00:00:06]} 37. Rxf8# {[%emt 00:00:02] [%clk 00:00:35]} 1-0

[Site "Europe Echecs"]

[Event "Championnat d'Europe de Blitz"]
[Date "2024.12.09"]
[White "Subelj, Jan"]
[Black "Mamedov, Rauf"]
[WhiteElo "2526"]
[BlackElo "2656"]
[Round "4.4"]
[Result "1/2-1/2"]
[TimeControl "180+2"]

1. Nf3 {[%emt 00:00:01] [%clk 00:03:03]} c5 {[%emt 00:00:05] [%clk 00:03:01]} 2.
e4 {[%emt 00:00:03] [%clk 00:03:02]} Nc6 {[%emt 00:00:01] [%clk 00:03:02]} 3.
Bb5 {[%clk 00:03:02]} Nf6 {[%emt 00:00:01] [%clk 00:03:03]} 4. Bxc6 {[%emt
00:00:01] [%clk 00:03:03]} dxc6 {[%clk 00:03:04]} 5. d3 {[%emt 00:00:02] [%clk
00:03:04]} Qc7 {[%clk 00:03:06]} 6. O-O {[%emt 00:00:02] [%clk 00:03:03]} g6
{[%emt 00:00:23] [%clk 00:02:45]} 7. a4 {[%emt 00:00:04] [%clk 00:03:02]} Bg7
{[%clk 00:02:46]} 8. a5 {[%emt 00:00:01] [%clk 00:03:03]} O-O {[%emt 00:00:02]
[%clk 00:02:47]} 9. Nbd2 {[%emt 00:00:05] [%clk 00:03:00]} Nd7 {[%emt 00:00:09]
[%clk 00:02:39]} 10. Nc4 {[%emt 00:00:04] [%clk 00:02:58]} Rb8 {[%emt 00:00:01]
[%clk 00:02:40]} 11. Bg5 {[%emt 00:00:05] [%clk 00:02:54]} Re8 {[%emt 00:00:04]
[%clk 00:02:39]} 12. Qd2 {[%emt 00:00:01] [%clk 00:02:55]} b5 {[%emt 00:00:08]
[%clk 00:02:33]} 13. axb6 {[%emt 00:00:02] [%clk 00:02:55]} axb6 {[%emt
00:00:05] [%clk 00:02:30]} 14. Bh6 {[%emt 00:00:14] [%clk 00:02:43]} Bh8 {[%emt
00:00:03] [%clk 00:02:29]} 15. c3 {[%emt 00:00:14] [%clk 00:02:32]} b5 {[%emt
00:00:37] [%clk 00:01:54]} 16. Ne3 {[%emt 00:00:02] [%clk 00:02:32]} Nf8 {[%emt
00:00:01] [%clk 00:01:55]} 17. d4 {[%emt 00:00:06] [%clk 00:02:28]} Rd8 {[%emt
00:00:15] [%clk 00:01:42]} 18. Qc2 {[%emt 00:00:03] [%clk 00:02:26]} b4 {[%emt
00:00:22] [%clk 00:01:23]} 19. Rfd1 {[%emt 00:00:20] [%clk 00:02:08]} bxc3
{[%emt 00:00:02] [%clk 00:01:23]} 20. bxc3 {[%emt 00:00:02] [%clk 00:02:08]}
cxd4 {[%emt 00:00:10] [%clk 00:01:15]} 21. cxd4 {[%emt 00:00:02] [%clk
00:02:09]} Ne6 {[%clk 00:01:16]} 22. Rac1 {[%emt 00:00:06] [%clk 00:02:04]} Nxd4
{[%emt 00:00:26] [%clk 00:00:52]} 23. Nxd4 {[%emt 00:00:02] [%clk 00:02:04]}
Rxd4 {[%emt 00:00:01] [%clk 00:00:53]} 24. Nd5 {[%emt 00:00:08] [%clk 00:01:58]}
Qd8 {[%emt 00:00:21] [%clk 00:00:33]} 25. Qxc6 {[%emt 00:00:23] [%clk 00:01:38]}
Bb7 {[%emt 00:00:10] [%clk 00:00:25]} 26. Qc5 {[%emt 00:00:03] [%clk 00:01:37]}
Rxd1+ {[%emt 00:00:03] [%clk 00:00:24]} 27. Rxd1 {[%emt 00:00:01] [%clk
00:01:38]} Bxd5 {[%emt 00:00:01] [%clk 00:00:25]} 28. exd5 {[%emt 00:00:10]
[%clk 00:01:30]} Rc8 {[%emt 00:00:01] [%clk 00:00:27]} 29. Qe3 {[%emt 00:00:01]
[%clk 00:01:30]} Bf6 {[%emt 00:00:08] [%clk 00:00:21]} 30. h3 {[%emt 00:00:02]
[%clk 00:01:30]} Qd7 {[%clk 00:00:22]} 31. Qe4 {[%emt 00:00:17] [%clk 00:01:16]}
Bg7 {[%emt 00:00:02] [%clk 00:00:23]} 32. Bxg7 {[%emt 00:00:08] [%clk 00:01:09]}
Kxg7 {[%emt 00:00:01] [%clk 00:00:24]} 33. Re1 {[%emt 00:00:01] [%clk 00:01:11]}
Rd8 {[%clk 00:00:25]} 34. Qxe7 {[%emt 00:00:01] [%clk 00:01:11]} Qxe7 {[%emt
00:00:01] [%clk 00:00:26]} 35. Rxe7 {[%emt 00:00:01] [%clk 00:01:11]} 1/2-1/2

[Site "Europe Echecs"]